[Event "EYCC 2017"]
[Site "Mamaia"]
[Date "2017.09.08"]
[Round "4"]
[White "Samadov, Read"]
[Black "Piliposyan, Robert"]
[Result "1/2-1/2"]
[ECO "B20"]
[WhiteElo "1848"]
[BlackElo "1773"]
[Annotator "NA"]
[PlyCount "62"]
[EventDate "2017.??.??"]
[EventType "swiss"]
[EventCountry "ROU"]
[SourceTitle "playchess.com"]
[Source "ChessBase"]
[SourceQuality "1"]
[TimeControl "40/5400+30:1800+30"]

1. e4 {[%emt 0:00:00]} c5 {[%emt 0:00:06]} 2. b3 {[%emt 0:00:00]} Nc6 {[%emt 0:00:42]} 3. Bb2 {[%emt 0:00:00]} d6 {[%emt 0:00:30]} 4. Nc3 {[%emt 0:05:18]} Nf6 {[%emt 0:00:10]} 5. Bb5 {[%emt 0:06:28]} Bd7 {[%emt 0:01:55]} 6. d3 {[%emt 0:02:25]} Nd4 {[%emt 0:03:23]} 7. Bxd7+ {[%emt 0:01:10]} Qxd7 {[%emt 0:00:16]} 8. Nge2 {[%emt 0:02:13]} g6 {[%emt 0:05:47]} 9. O-O {[%emt 0:05:41]} Bg7 {[%emt 0:01:24]} 10. Nxd4 {[%emt 0:04:16]} cxd4 {[%emt 0:00:37]} 11. Ne2 {[%emt 0:00:22]} e5 {[%emt 0:00:13]} 12. c3 {[%emt 0:06:18]} dxc3 {[%emt 0:00:35]} 13. Bxc3 {[%emt 0:00:18]} O-O {[%emt 0:10:12]} 14. f4 {[%emt 0:05:33]} Rfe8 {[%emt 0:01:31]} 15. Qe1 {[%emt 0:05:12]} Rac8 {[%emt 0:10:39]} 16. Rc1 {[%emt 0:09:15]} Qb5 {[%emt 0:03:50]} 17. Rf3 {[%emt 0:03:58]} d5 {[%emt 0:08:50]} 18. Bxe5 {[%emt 0:11:02]} dxe4 {[%emt 0:01:32]} 19. Nd4 {[%emt 0:01:52]} Qd5 {[%emt 0:01:52]} 20. Rxc8 {[%emt 0:01:28]} Rxc8 {[%emt 0:00:16]} 21. dxe4 {[%emt 0:03:36]} Nxe4 {[%emt 0:05:34]} 22. Bxg7 {[%emt 0:01:21]} Kxg7 {[%emt 0:00:05]} 23. Qa1 {[%emt 0:05:07]} Kg8 {[%emt 0:01:28]} 24. Rd3 {[%emt 0:01:36]} Rc3 {[%emt 0:02:25]} 25. Rd1 {[%emt 0:02:08]} Qc5 {[%emt 0:01:31]} 26. Qb2 {[%emt 0:00:47]} a5 {[%emt 0:09:28]} 27. f5 {[%emt 0:02:36]} gxf5 {[%emt 0:05:05]} 28. h3 {[%emt 0:02:25]} Re3 {[%emt 0:06:46]} 29. Rc1 {[%emt 0:02:46]} Rc3 {[%emt 0:04:43]} 30. Rd1 {[%emt 0:00:26]} Re3 {[%emt 0:07:45]} 31. Rc1 {[%emt 0:00:11]} Rc3 {[%emt 0:02:16]} 1/2-1/2

[Event "EYCC 2017"]
[Site "Mamaia"]
[Date "2017.09.08"]
[Round "4"]
[White "Louka, Magdalini"]
[Black "Muetsch, Annmarie"]
[Result "0-1"]
[ECO "A26"]
[WhiteElo "1814"]
[BlackElo "2137"]
[Annotator "NA"]
[PlyCount "62"]
[EventDate "2017.??.??"]
[EventType "swiss"]
[EventCountry "ROU"]
[SourceTitle "playchess.com"]
[Source "ChessBase"]
[SourceQuality "1"]
[TimeControl "40/5400+30:1800+30"]

1. c4 {[%emt 0:00:00]} e5 {[%emt 0:00:10]} 2. g3 {[%emt 0:00:00]} Nc6 {[%emt 0:00:41]} 3. Bg2 {[%emt 0:00:56]} g6 {[%emt 0:00:15]} 4. Nc3 {[%emt 0:00:24]} Bg7 {[%emt 0:00:12]} 5. d3 {[%emt 0:00:23]} d6 {[%emt 0:00:20]} 6. Rb1 {[%emt 0:01:13]} a5 {[%emt 0:00:42]} 7. a3 {[%emt 0:00:25]} f5 {[%emt 0:03:51]} 8. e3 {[%emt 0:00:15]} Nf6 {[%emt 0:01:25]} 9. Nge2 {[%emt 0:00:17]} O-O {[%emt 0:00:54]} 10. O-O {[%emt 0:00:35]} Kh8 {[%emt 0:01:41]} 11. b4 {[%emt 0:01:39]} axb4 {[%emt 0:00:07]} 12. axb4 {[%emt 0:00:07]} Ne7 {[%emt 0:04:33]} 13. b5 {[%emt 0:20:42]} d5 {[%emt 0:05:36]} 14. Qb3 {[%emt 0:10:56]} dxc4 {[%emt 0:18:53]} 15. dxc4 {[%emt 0:03:31]} e4 {[%emt 0:07:18]} 16. Rd1 {[%emt 0:03:56]} Qe8 {[%emt 0:01:34]} 17. Bb2 {[%emt 0:03:51]} g5 {[%emt 0:03:16]} 18. Rbc1 {[%emt 0:13:38]} Bd7 {[%emt 0:12:19]} 19. Nd4 {[%emt 0:03:23]} Ng6 {[%emt 0:12:12]} 20. Nd5 {[%emt 0:02:18]} Rc8 {[%emt 0:01:46]} 21. Ba3 {[%emt 0:06:44]} Rg8 {[%emt 0:01:37]} 22. Bh3 {[%emt 0:05:35]} Nxd5 {[%emt 0:04:51]} 23. cxd5 {[%emt 0:00:15]} Ne5 {[%emt 0:05:00]} 24. Ne6 {[%emt 0:09:26]} Nf3+ {[%emt 0:02:22]} 25. Kf1 {[%emt 0:02:36]} Bxb5+ {[%emt 0:00:31]} 26. Kg2 {[%emt 0:00:31]} g4 {[%emt 0:05:18]} 27. Bb2 {[%emt 0:04:12]} Qh5 {[%emt 0:04:09]} 28. Nf4 {[%emt 0:01:28]} gxh3+ {[%emt 0:01:22]} 29. Kh1 {[%emt 0:00:05]} Qe8 {[%emt 0:01:13]} 30. Ne6 {[%emt 0:01:34]} Ne5 {[%emt 0:00:47]} 31. Nxc7 {[%emt 0:01:52]} Qh5 {[%emt 0:00:22]} 0-1

[Event "EYCC 2017"]
[Site "Mamaia"]
[Date "2017.09.08"]
[Round "4"]
[White "Koubova, Anna Marie"]
[Black "Peycheva, Gergana"]
[Result "1-0"]
[ECO "E12"]
[WhiteElo "1805"]
[BlackElo "2252"]
[Annotator "NA"]
[PlyCount "69"]
[EventDate "2017.??.??"]
[EventType "swiss"]
[EventCountry "ROU"]
[SourceTitle "playchess.com"]
[Source "ChessBase"]
[SourceQuality "1"]
[TimeControl "40/5400+30:1800+30"]

1. d4 {[%emt 0:00:00]} Nf6 {[%emt 0:00:26]} 2. c4 {[%emt 0:00:00]} e6 {[%emt 0:00:41]} 3. Nf3 {[%emt 0:00:14]} b6 {[%emt 0:00:54]} 4. Bf4 {[%emt 0:01:44]} Bb7 {[%emt 0:02:48]} 5. e3 {[%emt 0:00:53]} Bb4+ {[%emt 0:03:21]} 6. Nfd2 {[%emt 0:01:11]} O-O {[%emt 0:03:35]} 7. a3 {[%emt 0:01:42]} Be7 {[%emt 0:02:44]} 8. Nc3 {[%emt 0:00:36]} c5 {[%emt 0:01:34]} 9. d5 {[%emt 0:00:50]} d6 {[%emt 0:08:34]} 10. Be2 {[%emt 0:13:21]} Nbd7 {[%emt 0:05:24]} 11. Bf3 {[%emt 0:04:21]} e5 {[%emt 0:03:25]} 12. Bg3 {[%emt 0:01:37]} Ne8 {[%emt 0:04:01]} 13. e4 {[%emt 0:00:52]} a6 {[%emt 0:02:13]} 14. O-O {[%emt 0:05:26]} g6 {[%emt 0:05:37]} 15. Be2 {[%emt 0:03:27]} Bf6 {[%emt 0:05:24]} 16. f4 {[%emt 0:18:20]} exf4 {[%emt 0:03:59]} 17. Bxf4 {[%emt 0:02:01]} Ne5 {[%emt 0:05:07]} 18. Nf3 {[%emt 0:00:57]} Rb8 {[%emt 0:05:27]} 19. a4 {[%emt 0:02:29]} Bc8 {[%emt 0:02:44]} 20. Nxe5 {[%emt 0:03:37]} Bxe5 {[%emt 0:01:26]} 21. Bxe5 {[%emt 0:00:40]} dxe5 {[%emt 0:00:01]} 22. Bg4 {[%emt 0:00:36]} f5 {[%emt 0:02:44]} 23. exf5 {[%emt 0:01:13]} gxf5 {[%emt 0:00:06]} 24. Bh3 {[%emt 0:00:06]} Nd6 {[%emt 0:04:28]} 25. b3 {[%emt 0:03:18]} Qh4 {[%emt 0:02:52]} 26. Qe1 {[%emt 0:04:45]} Qf6 {[%emt 0:03:39]} 27. Ra2 {[%emt 0:01:05]} Rb7 {[%emt 0:02:08]} 28. Ne2 {[%emt 0:02:28]} Re7 {[%emt 0:05:10]} 29. Ng3 {[%emt 0:00:59]} Kh8 {[%emt 0:02:44]} 30. Re2 {[%emt 0:02:14]} e4 {[%emt 0:05:57]} 31. Nh5 {[%emt 0:08:27]} Qg5 {[%emt 0:02:34]} 32. Qc3+ {[%emt 0:10:42]} Kg8 {[%emt 0:00:08]} 33. Qg3 {[%emt 0:00:07]} Qxg3 {[%emt 0:01:56]} 34. Nxg3 {[%emt 0:00:48]} e3 {[%emt 0:00:58]} 35. Rf3 {[%emt 0:02:18]} 1-0

[Event "EYCC 2017"]
[Site "Mamaia"]
[Date "2017.09.08"]
[Round "4"]
[White "Leriche, Ines"]
[Black "Limanovska, Elizabete"]
[Result "0-1"]
[ECO "E32"]
[WhiteElo "1802"]
[BlackElo "2071"]
[Annotator "NA"]
[PlyCount "120"]
[EventDate "2017.??.??"]
[EventType "swiss"]
[EventCountry "ROU"]
[SourceTitle "playchess.com"]
[Source "ChessBase"]
[SourceQuality "1"]
[TimeControl "40/5400+30:1800+30"]

1. d4 {[%emt 0:00:00]} Nf6 {[%emt 0:00:03]} 2. c4 {[%emt 0:00:00]} e6 {[%emt 0:00:04]} 3. Nc3 {[%emt 0:00:00]} Bb4 {[%emt 0:00:04]} 4. Qc2 {[%emt 0:00:12]} O-O {[%emt 0:01:30]} 5. a3 {[%emt 0:00:14]} Bxc3+ {[%emt 0:01:57]} 6. Qxc3 b6 {[%emt 0:00:55]} 7. Nf3 {[%emt 0:00:46]} Bb7 {[%emt 0:01:25]} 8. Bg5 {[%emt 0:00:33]} d6 {[%emt 0:09:14]} 9. Nd2 {[%emt 0:00:37]} Nbd7 {[%emt 0:08:46]} 10. e3 {[%emt 0:00:31]} h6 {[%emt 0:02:04]} 11. Bh4 {[%emt 0:04:01]} c5 {[%emt 0:05:36]} 12. dxc5 {[%emt 0:01:12]} dxc5 {[%emt 0:01:48]} 13. f3 {[%emt 0:08:14]} Qc7 {[%emt 0:05:00]} 14. Bd3 {[%emt 0:01:52]} Rad8 {[%emt 0:07:40]} 15. O-O {[%emt 0:03:40]} Qe5 {[%emt 0:02:15]} 16. Be2 {[%emt 0:36:18]} Qxc3 {[%emt 0:03:45]} 17. bxc3 {[%emt 0:00:06]} Ne5 {[%emt 0:02:33]} 18. Rfd1 {[%emt 0:02:54]} Ba6 {[%emt 0:07:59]} 19. Bxf6 {[%emt 0:10:17]} gxf6 {[%emt 0:00:04]} 20. Ne4 {[%emt 0:01:28]} f5 {[%emt 0:08:36]} 21. Nd6 {[%emt 0:00:48]} Rd7 {[%emt 0:02:14]} 22. f4 {[%emt 0:08:44]} Nc6 {[%emt 0:01:02]} 23. Nb5 {[%emt 0:03:55]} Rfd8 {[%emt 0:00:54]} 24. Bf3 {[%emt 0:02:43]} Na5 {[%emt 0:04:08]} 25. Rxd7 {[%emt 0:04:57]} Rxd7 {[%emt 0:00:05]} 26. Be2 {[%emt 0:00:15]} Rd2 {[%emt 0:02:00]} 27. Kf1 {[%emt 0:03:41]} Rc2 {[%emt 0:01:26]} 28. Nxa7 {[%emt 0:05:03]} Bxc4 {[%emt 0:01:22]} 29. Re1 {[%emt 0:00:42]} Rxc3 {[%emt 0:00:24]} 30. Nc8 {[%emt 0:00:35]} b5 {[%emt 0:02:29]} 31. Nd6 {[%emt 0:00:32]} Bxe2+ {[%emt 0:00:50]} 32. Rxe2 {[%emt 0:00:28]} b4 {[%emt 0:02:13]} 33. axb4 {[%emt 0:00:29]} cxb4 {[%emt 0:00:03]} 34. Rb2 {[%emt 0:00:36]} b3 {[%emt 0:00:05]} 35. Ke2 {[%emt 0:00:33]} Kf8 {[%emt 0:01:00]} 36. Nb5 {[%emt 0:00:13]} Rxe3+ {[%emt 0:01:39]} 37. Kxe3 {[%emt 0:00:43]} Nc4+ {[%emt 0:00:04]} 38. Ke2 {[%emt 0:00:30]} Nxb2 {[%emt 0:00:05]} 39. Nd4 {[%emt 0:00:11]} Ke7 {[%emt 0:00:53]} 40. Nxb3 {[%emt 0:00:00]} Kd6 {[%emt 0:00:48]} 41. Ke3 {[%emt 0:12:46]} Kd5 {[%emt 0:01:06]} 42. h3 {[%emt 0:01:01]} f6 {[%emt 0:06:50]} 43. Nd4 {[%emt 0:01:00]} Nd1+ {[%emt 0:04:42]} 44. Kd3 {[%emt 0:00:10]} h5 {[%emt 0:01:17]} 45. Ne2 {[%emt 0:06:18]} Nf2+ {[%emt 0:02:47]} 46. Ke3 {[%emt 0:00:18]} Ne4 {[%emt 0:00:21]} 47. Nd4 {[%emt 0:02:49]} Nd6 {[%emt 0:00:29]} 48. Ne2 {[%emt 0:01:03]} e5 {[%emt 0:02:54]} 49. h4 {[%emt 0:02:37]} Ne8 {[%emt 0:03:49]} 50. Ng3 {[%emt 0:02:34]} Ng7 {[%emt 0:00:06]} 51. Kf3 {[%emt 0:02:02]} Kd4 {[%emt 0:02:26]} 52. Ne2+ {[%emt 0:00:31]} Kd3 {[%emt 0:00:25]} 53. Nc1+ {[%emt 0:01:16]} Kc2 {[%emt 0:00:11]} 54. Ne2 {[%emt 0:01:29]} Kd2 {[%emt 0:00:22]} 55. Ng3 {[%emt 0:01:15]} Kd3 {[%emt 0:10:12]} 56. Nf1 {[%emt 0:01:05]} e4+ {[%emt 0:00:16]} 57. Kf2 {[%emt 0:00:41]} Ne6 {[%emt 0:00:32]} 58. Ne3 {[%emt 0:00:53]} Nd4 {[%emt 0:01:20]} 59. Nd5 {[%emt 0:00:37]} Nc2 {[%emt 0:00:23]} 60. Kf1 {[%emt 0:00:31]} Ne3+ {[%emt 0:00:48]} 0-1

[Event "EYCC 2017"]
[Site "Mamaia"]
[Date "2017.09.08"]
[Round "4"]
[White "Koltai, Dora"]
[Black "Jarocka, Liwia"]
[Result "0-1"]
[ECO "B22"]
[WhiteElo "1800"]
[BlackElo "1970"]
[Annotator "NA"]
[PlyCount "118"]
[EventDate "2017.??.??"]
[EventType "swiss"]
[EventCountry "ROU"]
[SourceTitle "playchess.com"]
[Source "ChessBase"]
[SourceQuality "1"]
[TimeControl "40/5400+30:1800+30"]

1. e4 {[%emt 0:00:00]} c5 {[%emt 0:00:10]} 2. c3 {[%emt 0:00:00]} d5 {[%emt 0:00:13]} 3. exd5 {[%emt 0:00:05]} Qxd5 {[%emt 0:00:11]} 4. d4 {[%emt 0:00:36]} Nc6 {[%emt 0:00:12]} 5. Nf3 {[%emt 0:00:54]} Bf5 {[%emt 0:00:16]} 6. Be2 {[%emt 0:08:23]} cxd4 {[%emt 0:00:13]} 7. cxd4 {[%emt 0:07:57]} Bxb1 {[%emt 0:00:24]} 8. Rxb1 {[%emt 0:00:21]} e6 {[%emt 0:00:08]} 9. a3 {[%emt 0:06:35]} Be7 {[%emt 0:01:44]} 10. O-O {[%emt 0:04:53]} Bf6 {[%emt 0:03:29]} 11. Be3 {[%emt 0:02:17]} Nge7 {[%emt 0:00:35]} 12. Qa4 {[%emt 0:04:56]} O-O {[%emt 0:01:21]} 13. Rbc1 {[%emt 0:08:55]} Rfd8 {[%emt 0:05:05]} 14. Rfd1 {[%emt 0:02:01]} Rac8 {[%emt 0:03:03]} 15. Qb5 {[%emt 0:04:59]} Qxb5 {[%emt 0:11:58]} 16. Bxb5 {[%emt 0:01:13]} Rd5 {[%emt 0:00:36]} 17. Ba4 {[%emt 0:05:13]} Rcd8 {[%emt 0:02:35]} 18. Bxc6 {[%emt 0:06:11]} Nxc6 {[%emt 0:00:50]} 19. Rd2 {[%emt 0:05:12]} Kf8 {[%emt 0:02:31]} 20. Rcd1 {[%emt 0:02:56]} Na5 {[%emt 0:05:56]} 21. g3 {[%emt 0:05:29]} b5 {[%emt 0:06:01]} 22. Rc2 {[%emt 0:03:15]} Nc4 {[%emt 0:07:51]} 23. a4 {[%emt 0:01:48]} e5 {[%emt 0:11:19]} 24. axb5 {[%emt 0:01:54]} exd4 {[%emt 0:01:16]} 25. Rxc4 {[%emt 0:06:34]} dxe3 {[%emt 0:00:07]} 26. Rxd5 {[%emt 0:00:39]} exf2+ {[%emt 0:00:12]} 27. Kxf2 {[%emt 0:00:12]} Rxd5 {[%emt 0:00:04]} 28. Rc8+ {[%emt 0:00:48]} Ke7 {[%emt 0:00:51]} 29. Rc7+ {[%emt 0:01:38]} Rd7 {[%emt 0:00:29]} 30. Rxd7+ {[%emt 0:04:44]} Kxd7 {[%emt 0:00:02]} 31. Ke3 {[%emt 0:01:34]} Bxb2 {[%emt 0:00:48]} 32. Kd3 {[%emt 0:00:39]} h6 {[%emt 0:01:51]} 33. Nd2 {[%emt 0:01:34]} Bf6 {[%emt 0:01:44]} 34. Nc4 {[%emt 0:00:50]} Bd8 {[%emt 0:02:23]} 35. Ke4 {[%emt 0:00:44]} Ke6 {[%emt 0:00:48]} 36. g4 {[%emt 0:00:49]} g6 {[%emt 0:01:07]} 37. h3 {[%emt 0:00:55]} Bc7 {[%emt 0:01:11]} 38. Kd4 {[%emt 0:00:39]} Bb6+ {[%emt 0:00:20]} 39. Ke4 {[%emt 0:00:05]} f5+ {[%emt 0:00:55]} 40. Kf4 {[%emt 0:00:00]} fxg4 {[%emt 0:05:19]} 41. Kxg4 {[%emt 0:10:19]} Kd5 {[%emt 0:00:34]} 42. Nd2 {[%emt 0:01:16]} Kc5 {[%emt 0:00:17]} 43. Ne4+ {[%emt 0:00:41]} Kxb5 {[%emt 0:00:35]} 44. Nd6+ {[%emt 0:00:07]} Kb4 {[%emt 0:01:38]} 45. Nc8 {[%emt 0:00:12]} Bc5 {[%emt 0:00:36]} 46. Nxa7 {[%emt 0:00:30]} Bxa7 {[%emt 0:00:05]} 47. Kf4 {[%emt 0:01:35]} Bf2 {[%emt 0:00:22]} 48. Kf3 {[%emt 0:05:14]} Bh4 {[%emt 0:00:23]} 49. Kg4 {[%emt 0:00:12]} g5 {[%emt 0:00:24]} 50. Kf3 {[%emt 0:01:41]} Kc4 {[%emt 0:00:05]} 51. Ke4 {[%emt 0:00:40]} h5 {[%emt 0:00:15]} 52. Kf3 {[%emt 0:00:41]} Kd3 {[%emt 0:00:05]} 53. Kg2 {[%emt 0:00:27]} Ke3 {[%emt 0:00:06]} 54. Kg1 {[%emt 0:00:39]} Kf3 {[%emt 0:00:09]} 55. Kh2 {[%emt 0:00:10]} Kf2 {[%emt 0:00:11]} 56. Kh1 {[%emt 0:00:12]} Kg3 {[%emt 0:00:04]} 57. Kg1 {[%emt 0:00:17]} Kxh3 {[%emt 0:00:06]} 58. Kh1 {[%emt 0:00:21]} g4 {[%emt 0:00:08]} 59. Kg1 {[%emt 0:00:06]} Bf6 {[%emt 0:00:10]} 0-1

[Event "EYCC 2017"]
[Site "Mamaia"]
[Date "2017.09.08"]
[Round "4"]
[White "Dubovyk, Anastasiia"]
[Black "Mironenko, Galina"]
[Result "1/2-1/2"]
[ECO "B50"]
[WhiteElo "1785"]
[BlackElo "2035"]
[Annotator "NA"]
[PlyCount "85"]
[EventDate "2017.??.??"]
[EventType "swiss"]
[EventCountry "ROU"]
[SourceTitle "playchess.com"]
[Source "ChessBase"]
[SourceQuality "1"]
[TimeControl "40/5400+30:1800+30"]

1. e4 {[%emt 0:00:00]} c5 {[%emt 0:00:05]} 2. Nf3 {[%emt 0:00:00]} d6 {[%emt 0:00:08]} 3. c3 {[%emt 0:00:00]} Nf6 {[%emt 0:00:19]} 4. Bc4 {[%emt 0:01:15]} g6 {[%emt 0:05:07]} 5. d3 {[%emt 0:00:21]} Nc6 {[%emt 0:01:06]} 6. Bb3 {[%emt 0:00:44]} Bg7 {[%emt 0:00:42]} 7. h3 {[%emt 0:02:04]} O-O {[%emt 0:00:21]} 8. O-O {[%emt 0:00:12]} b6 {[%emt 0:02:20]} 9. Re1 {[%emt 0:05:26]} Bb7 {[%emt 0:01:25]} 10. Be3 {[%emt 0:07:04]} e6 {[%emt 0:04:05]} 11. Nbd2 {[%emt 0:10:19]} Qc7 {[%emt 0:15:01]} 12. Nf1 {[%emt 0:05:36]} Rfd8 {[%emt 0:06:57]} 13. Ng3 {[%emt 0:06:57]} e5 {[%emt 0:07:03]} 14. Qc1 {[%emt 0:07:27]} b5 {[%emt 0:14:29]} 15. Bg5 {[%emt 0:11:02]} Ne7 {[%emt 0:02:47]} 16. Nh2 {[%emt 0:18:08]} c4 {[%emt 0:06:03]} 17. dxc4 {[%emt 0:02:33]} bxc4 {[%emt 0:00:25]} 18. Bc2 {[%emt 0:00:20]} d5 {[%emt 0:04:48]} 19. Bxf6 {[%emt 0:08:29]} Bxf6 {[%emt 0:00:07]} 20. Ng4 {[%emt 0:01:01]} Bg7 {[%emt 0:01:03]} 21. Qg5 {[%emt 0:03:12]} d4 {[%emt 0:02:58]} 22. cxd4 {[%emt 0:02:55]} exd4 {[%emt 0:05:58]} 23. e5 {[%emt 0:03:19]} d3 {[%emt 0:01:05]} 24. Ba4 {[%emt 0:01:54]} Qc5 {[%emt 0:04:42]} 25. Qh4 {[%emt 0:01:18]} Rd4 {[%emt 0:02:20]} 26. Nf6+ {[%emt 0:00:36]} Bxf6 {[%emt 0:00:18]} 27. Qxf6 {[%emt 0:00:24]} Nd5 {[%emt 0:00:28]} 28. Qd6 {[%emt 0:00:44]} Qa5 {[%emt 0:00:22]} 29. e6 {[%emt 0:00:26]} Qxa4 {[%emt 0:02:16]} 30. exf7+ {[%emt 0:00:09]} Kxf7 {[%emt 0:00:28]} 31. Qe6+ {[%emt 0:00:49]} Kf8 {[%emt 0:00:36]} 32. Qd6+ {[%emt 0:00:36]} Kg8 {[%emt 0:00:44]} 33. Qe6+ {[%emt 0:00:19]} Kf8 {[%emt 0:00:55]} 34. Qd6+ {[%emt 0:00:34]} Kg8 {[%emt 0:00:27]} 35. Qe6+ {[%emt 0:00:37]} Kf8 {[%emt 0:00:17]} 36. Qd6+ {[%emt 0:00:30]} Kg8 {[%emt 0:00:16]} 37. Qe6+ {[%emt 0:00:27]} Kf8 {[%emt 0:00:11]} 38. Qd6+ {[%emt 0:00:33]} Kg8 {[%emt 0:00:17]} 39. Qe6+ {[%emt 0:00:32]} Kf8 {[%emt 0:00:20]} 40. Qd6+ {[%emt 0:00:00]} Kg8 {[%emt 0:00:13]} 41. Qe6+ {[%emt 0:04:49]} Kf8 {[%emt 0:00:30]} 42. Qd6+ {[%emt 0:02:12]} Kg8 {[%emt 0:00:25]} 43. Qe6+ 1/2-1/2

[Event "EYCC 2017"]
[Site "Mamaia"]
[Date "2017.09.08"]
[Round "4"]
[White "Klimkowski, Jan"]
[Black "Milikow, Elie"]
[Result "1-0"]
[ECO "B33"]
[WhiteElo "1761"]
[BlackElo "1977"]
[Annotator "NA"]
[PlyCount "83"]
[EventDate "2017.??.??"]
[EventType "swiss"]
[EventCountry "ROU"]
[SourceTitle "playchess.com"]
[Source "ChessBase"]
[SourceQuality "1"]
[TimeControl "40/5400+30:1800+30"]

1. e4 c5 2. Nf3 Nc6 3. d4 cxd4 4. Nxd4 Nf6 5. Nc3 e5 6. Ndb5 d6 7. Bg5 a6 8. Na3 b5 9. Nd5 Be7 10. Bxf6 Bxf6 11. c3 O-O 12. Nc2 Bg5 13. h4 Bh6 14. a4 bxa4 15. Ncb4 Nxb4 16. Nxb4 Bb7 17. Nd5 Bxd5 18. Qxd5 Qb6 19. Ra2 Rac8 20. Be2 a3 21. O-O axb2 22. Rb1 Rxc3 23. Rbxb2 Rc1+ 24. Bf1 Qd8 25. g3 Rc5 26. Qd3 d5 27. exd5 Rxd5 28. Qxa6 Rd1 29. Kg2 e4 30. Be2 Rd6 31. Qc4 e3 32. fxe3 Bxe3 33. Bf3 Qf6 34. Rb7 Rfd8 35. Qe4 Bc5 36. Re2 Rd1 37. Qc6 Qd4 38. Re8+ Bf8 39. Bxd1 Qxd1 40. Rxd8 Qxd8 41. Qd7 Qa5 42. Qxf7+ {Qb5} 1-0

[Event "EYCC 2017"]
[Site "Mamaia"]
[Date "2017.09.08"]
[Round "4"]
[White "Bondareva, Daria"]
[Black "Can, Isil"]
[Result "1/2-1/2"]
[ECO "C47"]
[WhiteElo "1754"]
[BlackElo "1945"]
[Annotator "NA"]
[PlyCount "42"]
[EventDate "2017.??.??"]
[EventType "swiss"]
[EventCountry "ROU"]
[SourceTitle "playchess.com"]
[Source "ChessBase"]
[SourceQuality "1"]
[TimeControl "40/5400+30:1800+30"]

1. e4 {[%emt 0:00:00]} e5 {[%emt 0:00:05]} 2. Nf3 {[%emt 0:00:00]} Nc6 {[%emt 0:00:05]} 3. Nc3 {[%emt 0:00:00]} Nf6 {[%emt 0:00:05]} 4. d4 {[%emt 0:00:00]} exd4 {[%emt 0:00:07]} 5. Nxd4 {[%emt 0:00:00]} Bb4 {[%emt 0:00:06]} 6. Nxc6 {[%emt 0:00:00]} bxc6 {[%emt 0:00:09]} 7. Bd3 {[%emt 0:00:00]} d5 {[%emt 0:00:31]} 8. exd5 {[%emt 0:00:00]} cxd5 {[%emt 0:00:07]} 9. O-O {[%emt 0:00:00]} O-O {[%emt 0:00:08]} 10. h3 {[%emt 0:00:02]} c6 {[%emt 0:00:15]} 11. Qf3 {[%emt 0:00:32]} Rb8 {[%emt 0:06:46]} 12. Ne2 {[%emt 0:03:18]} Bd6 {[%emt 0:04:02]} 13. b3 {[%emt 0:05:25]} Be5 {[%emt 0:06:56]} 14. Bf4 {[%emt 0:05:48]} Qd6 {[%emt 0:14:53]} 15. c3 {[%emt 0:12:07]} Bb7 {[%emt 0:06:00]} 16. Bxe5 {[%emt 0:07:36]} Qxe5 {[%emt 0:00:10]} 17. Rfe1 {[%emt 0:01:01]} c5 {[%emt 0:05:09]} 18. Ng3 {[%emt 0:10:53]} Qc7 {[%emt 0:00:41]} 19. Nh5 {[%emt 0:12:15]} Nxh5 {[%emt 0:01:19]} 20. Qxh5 {[%emt 0:00:04]} g6 {[%emt 0:00:25]} 21. Qg5 {[%emt 0:08:18]} Rfe8 {[%emt 0:13:34]} 1/2-1/2

[Event "EYCC 2017"]
[Site "Mamaia"]
[Date "2017.09.08"]
[Round "4"]
[White "Lomaia, Diana"]
[Black "Toncheva, Nadya"]
[Result "1-0"]
[ECO "B42"]
[WhiteElo "1753"]
[BlackElo "1802"]
[Annotator "NA"]
[PlyCount "69"]
[EventDate "2017.??.??"]
[EventType "swiss"]
[EventCountry "ROU"]
[SourceTitle "playchess.com"]
[Source "ChessBase"]
[SourceQuality "1"]
[TimeControl "40/5400+30:1800+30"]

1. e4 {[%emt 0:00:00]} c5 {[%emt 0:00:03]} 2. Nf3 {[%emt 0:00:00]} e6 {[%emt 0:00:02]} 3. d4 {[%emt 0:00:06]} cxd4 {[%emt 0:00:02]} 4. Nxd4 {[%emt 0:00:06]} a6 {[%emt 0:00:01]} 5. Bd3 {[%emt 0:00:32]} Nf6 {[%emt 0:00:05]} 6. Qe2 {[%emt 0:00:42]} d6 {[%emt 0:00:35]} 7. c4 {[%emt 0:00:40]} Qc7 {[%emt 0:00:18]} 8. O-O {[%emt 0:00:09]} g6 {[%emt 0:00:04]} 9. Nc3 {[%emt 0:04:51]} Bg7 {[%emt 0:00:06]} 10. Be3 {[%emt 0:00:09]} Nc6 {[%emt 0:01:23]} 11. Nxc6 {[%emt 0:03:55]} bxc6 {[%emt 0:00:25]} 12. Rad1 {[%emt 0:01:08]} O-O {[%emt 0:01:39]} 13. f4 {[%emt 0:01:42]} Re8 {[%emt 0:04:22]} 14. Bb1 {[%emt 0:08:31]} Bb7 {[%emt 0:02:30]} 15. Bd4 {[%emt 0:04:34]} c5 {[%emt 0:04:56]} 16. Bf2 {[%emt 0:02:29]} Rad8 {[%emt 0:05:10]} 17. Bh4 {[%emt 0:03:38]} Rb8 {[%emt 0:00:51]} 18. Rd2 {[%emt 0:10:04]} Nd7 {[%emt 0:09:49]} 19. Bg3 {[%emt 0:04:49]} f5 {[%emt 0:10:10]} 20. Re1 {[%emt 0:04:21]} Bxc3 {[%emt 0:13:38]} 21. bxc3 {[%emt 0:00:29]} Nf6 {[%emt 0:06:13]} 22. e5 {[%emt 0:06:22]} Be4 {[%emt 0:04:56]} 23. exd6 {[%emt 0:03:38]} Qc6 {[%emt 0:00:51]} 24. Bh4 {[%emt 0:03:10]} Rxb1 {[%emt 0:21:06]} 25. Bxf6 {[%emt 0:05:03]} Rb7 {[%emt 0:00:40]} 26. Qf2 {[%emt 0:02:44]} Rd7 {[%emt 0:01:44]} 27. Be5 {[%emt 0:00:16]} Qa4 {[%emt 0:01:17]} 28. Qxc5 {[%emt 0:01:55]} Rdd8 {[%emt 0:01:59]} 29. Qd4 {[%emt 0:01:34]} Rf8 {[%emt 0:01:05]} 30. h4 {[%emt 0:05:40]} Rf7 {[%emt 0:02:42]} 31. Qb6 {[%emt 0:02:34]} Rc8 {[%emt 0:00:44]} 32. d7 {[%emt 0:00:25]} Rxd7 {[%emt 0:01:58]} 33. Qxe6+ {[%emt 0:00:06]} Kf8 {[%emt 0:00:04]} 34. Rxd7 {[%emt 0:00:30]} Qxa2 {[%emt 0:00:04]} 35. Qf7# {[%emt 0:00:08]} 1-0